lending/lending_fUSD_20250508
["ID","MTS","AMOUNT","RATE_DAILY","PERIOD"]
[360272890,1746687045934,-296.954,0.00019998,2]
[360272967,1746687235315,3009.49,0.0003,30]
[360272968,1746687284985,1600.0,0.00018968,2]
[360272969,1746687285648,1600.0,0.00026081,120]
[360272970,1746687286067,1600.0,0.00028452,120]
[360272971,1746687321904,650.0,0.0003,30]
[360272972,1746687458074,173.33,0.00018957,2]
[360272973,1746687470814,151.54,0.00018957,2]
[360272974,1746687470974,151.54,0.00019005,2]
[360272975,1746687471177,151.54,0.00019052,2]
[360272976,1746687603343,364.78232201,0.00019307,2]
[360272977,1746687636384,23890.0,0.00018897,2]
[360272979,1746687749904,226.39,0.00018875,2]
[360272980,1746687761784,1333.0,0.00029041,120]
[360272981,1746687778699,238.48,0.00019052,2]
[360272982,1746687971079,623.0,0.0003,30]
[360272983,1746687995111,-206.28198214,0.00019509,2]
[360272984,1746688000663,1000.0,0.00018901,2]
[360272985,1746688017501,250.0,0.00018901,2]
[360272986,1746688163451,467.19,0.00016958,2]
[360272987,1746688163665,467.19,0.00019222,2]
[360272993,1746688231816,-168.44,0.00019511,2]
[360272994,1746688231827,-200.0,0.00019532,2]
[360272995,1746688231839,-1200.0,0.00019606,2]
[360272996,1746688231856,-300.0,0.00019606,2]
[360272997,1746688231866,-1834.0,0.00019607,2]
[360272998,1746688231877,-1397.0,0.00019607,2]
[360272999,1746688231887,-300.0,0.00019607,2]
[360273000,1746688231899,-718.0,0.00019609,2]
[360273001,1746688231910,-2464.0,0.00019609,2]
[360273002,1746688231920,-2858.0,0.00019609,2]
[360273003,1746688231932,-2728.0,0.00019706,2]
[360273004,1746688231942,-2570.0,0.00019706,2]
[360273005,1746688231955,-3285.0,0.00019706,2]
[360273006,1746688231966,-261.32417383,0.0001973,2]
[360273007,1746688231975,-250.0,0.00019747,2]
[360273008,1746688231986,-7476.59825866,0.00019748,2]
[360273009,1746688231997,-207.4,0.00019763,2]
[360273010,1746688232007,-252.79,0.00019775,2]
[360273011,1746688232018,-3634.12425139,0.00019775,2]
[360273012,1746688232155,-809.76574861,0.00019775,2]
[360273013,1746688232166,-2492.81907045,0.00019775,2]
[360273014,1746688232178,-1579.13148732,0.00019775,2]
[360273015,1746688232190,-450.037073,0.00019775,2]
[360273016,1746688232201,-776.48642641,0.00019775,2]
[360273017,1746688232213,-3174.52594282,0.00019775,2]
[360273018,1746688232223,-31397.9351,0.00019776,2]
[360273019,1746688232232,-1171.4806,0.00019776,2]
[360273020,1746688232242,-270.3679,0.00019798,2]
[360273021,1746688232252,-505.0,0.00019804,2]
[360273022,1746688232261,-1990.0,0.00019804,2]
[360273023,1746688232271,-4310.68548275,0.00019831,2]
[360273024,1746688232281,-4310.68548275,0.00019839,2]
[360273025,1746688232291,-2865.26800945,0.00019846,2]
[360273026,1746688232304,-1445.4174733,0.00019846,2]
[360273029,1746688232324,-4310.68548275,0.00019854,2]
[360273032,1746688232336,-3375.10475395,0.00019862,2]
[360273034,1746688232350,-935.5807288,0.00019862,2]
[360273054,1746688232620,-1000.0,0.00019866,2]
[360273055,1746688232632,-4310.68548275,0.00019869,2]
[360273056,1746688232643,-1136.11051345,0.00019877,2]
[360273057,1746688232657,-3174.5749693,0.00019877,2]
[360273058,1746688232667,-572.83478046,0.00019882,2]
[360273059,1746688232682,-2379.81825024,0.00019885,2]
[360273060,1746688232699,-1930.86723251,0.00019885,2]
[360273061,1746688232709,-151.0,0.00019886,2]
[360273062,1746688232719,-799.6414,0.00019888,2]
[360273063,1746688232729,-2481.73041472,0.0001989,2]
[360273064,1746688232757,-18.26958528,0.0001989,2]
[360273065,1746688232767,-502.0,0.0001989,2]
[360273066,1746688232778,-4310.68548275,0.00019892,2]
[360273067,1746688232789,-272.94517321,0.00019898,2]
[360273068,1746688232799,-159.93026318,0.00019898,2]
[360273069,1746688232811,-2056.16949558,0.00019898,2]
[360273070,1746688238797,-954.0297629,0.00019898,2]
[360273071,1746688238810,-38376.65524152,0.00019898,2]
[360273072,1746688238823,-272.94517316,0.00019898,2]
[360273073,1746688238833,-272.94517316,0.00019898,2]
[360273074,1746688238843,-272.94517316,0.00019899,2]
[360273075,1746688238854,-272.94517316,0.00019899,2]
[360273076,1746688238865,-191.07996063,0.00019899,2]
[360273077,1746688238874,-546.75942948,0.00019899,2]
[360273078,1746688238884,-272.94517316,0.00019899,2]
[360273079,1746688238893,-272.94517316,0.00019899,2]
[360273080,1746688238909,-272.94517316,0.000199,2]
[360273081,1746688238920,-272.94517316,0.000199,2]
[360273082,1746688238929,-272.94517316,0.000199,2]
[360273083,1746688238939,-443.6685687,0.000199,2]
[360273084,1746688238950,-4310.68548275,0.000199,2]
[360273085,1746688238960,-199.54860044,0.000199,2]
[360273086,1746688238969,-165.8257278,0.000199,2]
[360273087,1746688238979,-1689.9263315,0.000199,2]
[360273088,1746688238988,-1180.79754484,0.000199,2]
[360273089,1746688238998,-159.93026317,0.000199,2]
[360273090,1746688239008,-4746.0,0.00019902,2]
[360273091,1746688239017,-500.0,0.00019918,2]
[360273092,1746688239028,-6759.0,0.00019951,2]
[360273093,1746688239037,-4020.0,0.00019951,2]
[360273094,1746688239047,-314.2,0.00019951,2]
[360273095,1746688239057,-5935.0,0.00019951,2]
[360273096,1746688239066,-450.0,0.00019969,2]
[360273097,1746688239075,-607.78,0.00019969,2]
[360273098,1746688239084,-12500.0,0.00019973,2]
[360273099,1746688239094,-500.0,0.00019973,2]
[360273100,1746688239104,-500.0,0.00019973,2]
[360273101,1746688239114,-500.0,0.00019973,2]
[360273103,1746688239126,-12500.0,0.00019981,2]
[360273104,1746688239136,-340.10306192,0.00019989,2]
[360273105,1746688239149,-1159.41493808,0.00019989,2]
[360273106,1746688239158,-753.48506192,0.00019989,2]
[360273107,1746688239173,-1153.86737547,0.00019989,2]
[360273108,1746688239185,-459.13262453,0.00019989,2]
[360273112,1746688240179,-1209.46699496,0.00019989,2]
[360273113,1746688240393,-4914.80794312,0.00019989,2]
[360273114,1746688240403,-1963.15,0.00019989,2]
[360273115,1746688240413,-4739.02,0.00019989,2]
[360273116,1746688240423,-351.05932504,0.00019989,2]
[360273117,1746688240435,-7886.28447121,0.0001999,2]
[360273118,1746688240449,-4613.71552879,0.0001999,2]
[360273119,1746688240459,-9850.71859299,0.0001999,2]
[360273120,1746688240471,-495.635,0.0001999,2]
[360273121,1746688240484,-2153.64640701,0.0001999,2]
[360273122,1746688240494,-450.0,0.00019997,2]
[360273123,1746688240504,-1400.2,0.00019997,2]
[360273124,1746688240514,-974.2,0.00019997,2]
[360273125,1746688240523,-450.0,0.00019997,2]
[360273126,1746688240533,-997.81,0.00019997,2]
[360273127,1746688240543,-3525.34,0.00019997,2]
[360273128,1746688240552,-877.62,0.00019997,2]
[360273129,1746688240563,-2758.94,0.00019997,2]
[360273130,1746688240573,-260.19952332,0.00019997,2]
[360273131,1746688240583,-2079.78,0.00019997,2]
[360273132,1746688240592,-450.0,0.00019997,2]
[360273133,1746688240602,-2322.05,0.00019997,2]
[360273134,1746688240613,-1500.0,0.00019998,2]
[360273135,1746688240623,-450.0,0.00019998,2]
[360273136,1746688240633,-450.0,0.00019998,2]
[360273137,1746688240644,-299.4542109,0.00019998,2]
[360273138,1746688240653,-450.0,0.00019998,2]
[360273139,1746688240664,-153.08,0.00019998,2]
[360273140,1746688240675,-450.0,0.00019998,2]
[360273141,1746688240685,-450.0,0.00019998,2]
[360273142,1746688240694,-450.0,0.00019998,2]
[360273143,1746688240704,-1320.33,0.00019998,2]
[360273144,1746688240716,-1320.33,0.00019998,2]
[360273145,1746688240726,-1320.33,0.00019998,2]
[360273146,1746688240736,-1320.33,0.00019998,2]
[360273147,1746688240745,-607.78,0.00019998,2]
[360273148,1746688240757,-607.78,0.00019998,2]
[360273149,1746688240767,-607.78,0.00019998,2]
[360273150,1746688240779,-450.0,0.00019998,2]
[360273151,1746688240789,-450.0,0.00019998,2]
[360273152,1746688240799,-450.0,0.00019998,2]
[360273153,1746688240809,-370.8521172,0.00019998,2]
[360273154,1746688240819,-1481.89,0.00019998,2]
[360273155,1746688240828,-1481.89,0.00019998,2]
[360273156,1746688240838,-1481.89,0.00019998,2]
[360273157,1746688240847,-1481.89,0.00019998,2]
[360273158,1746688240857,-450.0,0.00019998,2]
[360273159,1746688240867,-450.0,0.00019998,2]
[360273160,1746688240876,-450.0,0.00019998,2]
[360273161,1746688240886,-450.0,0.00019998,2]
[360273162,1746688240896,-256.52908062,0.00019998,2]
[360273163,1746688240906,-450.0,0.00019998,2]
[360273164,1746688240915,-450.0,0.00019998,2]
[360273165,1746688240925,-450.0,0.00019998,2]
[360273166,1746688240935,-450.0,0.00019998,2]
[360273167,1746688240945,-657.6,0.00019998,2]
[360273168,1746688240958,-657.6,0.00019998,2]
[360273169,1746688240968,-657.6,0.00019998,2]
[360273170,1746688240978,-657.6,0.00019998,2]
[360273172,1746688240988,-1400.2,0.00019998,2]
[360273174,1746688240998,-1400.2,0.00019998,2]
[360273176,1746688241008,-1400.2,0.00019998,2]
[360273178,1746688241017,-2603.03,0.00019998,2]
[360273179,1746688241028,-2603.03,0.00019998,2]
[360273180,1746688241039,-2603.03,0.00019998,2]
[360273181,1746688241049,-2603.03,0.00019998,2]
[360273182,1746688241059,-974.2,0.00019998,2]
[360273183,1746688241069,-974.2,0.00019998,2]
[360273184,1746688241079,-974.2,0.00019998,2]
[360273185,1746688241089,-450.0,0.00019998,2]
[360273186,1746688241100,-450.0,0.00019998,2]
[360273187,1746688241112,-450.0,0.00019998,2]
[360273188,1746688241123,-997.81,0.00019998,2]
[360273189,1746688241133,-997.81,0.00019998,2]
[360273190,1746688241143,-450.0,0.00019998,2]
[360273191,1746688241153,-3525.34,0.00019998,2]
[360273192,1746688241163,-997.81,0.00019998,2]
[360273193,1746688241173,-450.0,0.00019998,2]
[360273194,1746688241183,-3525.34,0.00019998,2]
[360273195,1746688241193,-232.62064242,0.00019998,2]
[360273196,1746688241203,-3525.34,0.00019998,2]
[360273197,1746688241213,-877.62,0.00019998,2]
[360273198,1746688241224,-877.62,0.00019998,2]
[360273199,1746688241235,-450.0,0.00019998,2]
[360273200,1746688241244,-877.62,0.00019998,2]
[360273201,1746688241255,-450.0,0.00019998,2]
[360273202,1746688241264,-450.0,0.00019998,2]
[360273203,1746688241274,-2758.94,0.00019998,2]
[360273204,1746688241284,-2758.94,0.00019998,2]
[360273205,1746688241294,-2758.94,0.00019998,2]
[360273206,1746688241303,-2079.78,0.00019998,2]
[360273207,1746688241313,-2079.78,0.00019998,2]
[360273208,1746688241326,-2079.78,0.00019998,2]
[360273209,1746688241336,-8490.76,0.00019998,2]
[360273210,1746688241346,-8490.76,0.00019998,2]
[360273211,1746688241355,-8490.76,0.00019998,2]
[360273212,1746688241365,-1963.15,0.00019998,2]
[360273213,1746688241375,-1963.15,0.00019998,2]
[360273214,1746688241385,-1963.15,0.00019998,2]
[360273215,1746688241395,-4739.02,0.00019998,2]
[360273216,1746688241405,-4739.02,0.00019998,2]
[360273217,1746688241415,-4739.02,0.00019998,2]
[360273218,1746688241425,-450.0,0.00019998,2]
[360273219,1746688241435,-450.0,0.00019998,2]
[360273220,1746688241445,-450.0,0.00019998,2]
[360273221,1746688241456,-450.0,0.00019998,2]
[360273222,1746688241467,-450.0,0.00019998,2]
[360273223,1746688241477,-450.0,0.00019998,2]
[360273224,1746688241487,-450.0,0.00019998,2]
[360273225,1746688241497,-2322.05,0.00019998,2]
[360273226,1746688241506,-2322.05,0.00019998,2]
[360273227,1746688241517,-256.73598992,0.00019998,2]
[360273228,1746688241528,-221.01827957,0.00019998,2]
[360273229,1746688241538,-183.75765192,0.00019998,2]
[360273230,1746688241549,-2322.05,0.00019998,2]
[360273231,1746688241558,-12500.0,0.00019999,2]
[360273232,1746688241568,-3014.0,0.00019999,2]
[360273233,1746688241578,-450.0,0.00019999,2]
[360273234,1746688241587,-450.0,0.00019999,2]
[360273235,1746688241597,-450.0,0.00019999,2]
[360273236,1746688241607,-450.0,0.00019999,2]
[360273237,1746688241617,-450.0,0.00019999,2]
[360273238,1746688241626,-450.0,0.00019999,2]
[360273239,1746688241637,-450.0,0.00019999,2]
[360273240,1746688241646,-450.0,0.00019999,2]
[360273241,1746688241656,-450.0,0.00019999,2]
[360273242,1746688241666,-450.0,0.00019999,2]
[360273243,1746688241675,-450.0,0.00019999,2]
[360273244,1746688241685,-223.34,0.00019999,2]
[360273245,1746688241695,-1320.33,0.00019999,2]
[360273246,1746688241705,-1320.33,0.00019999,2]
[360273247,1746688241717,-1320.33,0.00019999,2]
[360273248,1746688241726,-1320.33,0.00019999,2]
[360273249,1746688241736,-1320.33,0.00019999,2]
[360273250,1746688241746,-1320.33,0.00019999,2]
[360273251,1746688241756,-1320.33,0.00019999,2]
[360273252,1746688241766,-1320.33,0.00019999,2]
[360273253,1746688241775,-1320.33,0.00019999,2]
[360273254,1746688241785,-1320.33,0.00019999,2]
[360273255,1746688241796,-1320.33,0.00019999,2]
[360273256,1746688241805,-1320.33,0.00019999,2]
[360273257,1746688241815,-1320.33,0.00019999,2]
[360273258,1746688241825,-1320.33,0.00019999,2]
[360273259,1746688241835,-1320.33,0.00019999,2]
[360273260,1746688241846,-1320.33,0.00019999,2]
[360273261,1746688241856,-1320.33,0.00019999,2]
[360273262,1746688241866,-1320.33,0.00019999,2]
[360273263,1746688241875,-1320.33,0.00019999,2]
[360273264,1746688241885,-1320.43,0.00019999,2]
[360273265,1746688241895,-607.78,0.00019999,2]
[360273266,1746688241907,-607.78,0.00019999,2]
[360273267,1746688241918,-607.78,0.00019999,2]
[360273268,1746688241928,-607.78,0.00019999,2]
[360273269,1746688241938,-607.78,0.00019999,2]
[360273270,1746688241948,-607.78,0.00019999,2]
[360273271,1746688241963,-607.78,0.00019999,2]
[360273272,1746688241973,-607.78,0.00019999,2]
[360273273,1746688241982,-607.78,0.00019999,2]
[360273274,1746688241992,-607.78,0.00019999,2]
[360273275,1746688242003,-607.78,0.00019999,2]
[360273276,1746688242012,-607.78,0.00019999,2]
[360273277,1746688242021,-607.78,0.00019999,2]
[360273278,1746688242031,-607.78,0.00019999,2]
[360273279,1746688242040,-607.78,0.00019999,2]
[360273280,1746688242050,-607.78,0.00019999,2]
[360273281,1746688242059,-607.78,0.00019999,2]
[360273282,1746688242070,-607.78,0.00019999,2]
[360273283,1746688242079,-607.78,0.00019999,2]
[360273284,1746688242089,-607.88230002,0.00019999,2]
[360273285,1746688242099,-12500.0,0.00019999,2]
[360273286,1746688242108,-450.0,0.00019999,2]
[360273287,1746688242119,-450.0,0.00019999,2]
[360273288,1746688242130,-450.0,0.00019999,2]
[360273289,1746688242142,-234.64575144,0.00019999,2]
[360273290,1746688242151,-1481.89,0.00019999,2]
[360273291,1746688242162,-1481.89,0.00019999,2]
[360273292,1746688242173,-1481.89,0.00019999,2]
[360273293,1746688242183,-1481.89,0.00019999,2]
[360273294,1746688242193,-1481.89,0.00019999,2]
[360273295,1746688242203,-1481.89,0.00019999,2]
[360273296,1746688242214,-1481.89,0.00019999,2]
[360273297,1746688242224,-1481.89,0.00019999,2]
[360273298,1746688242237,-1481.89,0.00019999,2]
[360273299,1746688242248,-1481.89,0.00019999,2]
[360273300,1746688242259,-1481.89,0.00019999,2]
[360273301,1746688242268,-1481.89,0.00019999,2]
[360273302,1746688242278,-450.0,0.00019999,2]
[360273303,1746688242288,-1481.89,0.00019999,2]
[360273304,1746688242298,-1481.89,0.00019999,2]
[360273305,1746688242307,-450.0,0.00019999,2]
[360273306,1746688242317,-1481.89,0.00019999,2]
[360273307,1746688242327,-1481.89,0.00019999,2]
[360273308,1746688242337,-1481.89,0.00019999,2]
[360273309,1746688242347,-297.8496,0.00019999,2]
[360273310,1746688242358,-1481.89,0.00019999,2]
[360273311,1746688242368,-1481.89,0.00019999,2]
[360273312,1746688242377,-1482.11728271,0.00019999,2]
[360273313,1746688242388,-450.0,0.00019999,2]
[360273314,1746688242397,-450.0,0.00019999,2]
[360273315,1746688242407,-450.0,0.00019999,2]
[360273316,1746688242418,-450.0,0.00019999,2]
[360273317,1746688242427,-450.0,0.00019999,2]
[360273318,1746688242437,-450.0,0.00019999,2]
[360273319,1746688242447,-450.0,0.00019999,2]
[360273320,1746688242457,-450.0,0.00019999,2]
[360273321,1746688242466,-450.0,0.00019999,2]
[360273322,1746688242475,-450.0,0.00019999,2]
[360273323,1746688242485,-450.0,0.00019999,2]
[360273324,1746688242494,-450.0,0.00019999,2]
[360273325,1746688242504,-450.0,0.00019999,2]
[360273326,1746688242513,-450.0,0.00019999,2]
[360273327,1746688242523,-450.0,0.00019999,2]
[360273328,1746688242532,-450.0,0.00019999,2]
[360273329,1746688242542,-450.0,0.00019999,2]
[360273330,1746688242552,-450.0,0.00019999,2]
[360273331,1746688242562,-450.0,0.00019999,2]
[360273332,1746688242572,-218.58,0.00019999,2]
[360273333,1746688242581,-657.6,0.00019999,2]
[360273334,1746688242591,-657.6,0.00019999,2]
[360273335,1746688242601,-657.6,0.00019999,2]
[360273336,1746688242611,-657.6,0.00019999,2]
[360273338,1746688242621,-657.6,0.00019999,2]
[360273340,1746688242630,-657.6,0.00019999,2]
[360273341,1746688242640,-657.6,0.00019999,2]
[360273342,1746688242649,-657.6,0.00019999,2]
[360273343,1746688242659,-657.6,0.00019999,2]
[360273344,1746688242668,-657.6,0.00019999,2]
[360273345,1746688242678,-657.6,0.00019999,2]
[360273346,1746688242688,-657.6,0.00019999,2]
[360273347,1746688242698,-657.6,0.00019999,2]
[360273348,1746688242708,-657.6,0.00019999,2]
[360273349,1746688242718,-657.6,0.00019999,2]
[360273350,1746688242728,-657.6,0.00019999,2]
[360273351,1746688242737,-657.6,0.00019999,2]
[360273354,1746688242748,-657.6,0.00019999,2]
[360273355,1746688242967,-657.6,0.00019999,2]
[360273356,1746688242978,-657.78,0.00019999,2]
[360273357,1746688242988,-1400.2,0.00019999,2]
[360273358,1746688242999,-1400.2,0.00019999,2]
[360273359,1746688243009,-1400.2,0.00019999,2]
[360273360,1746688243019,-1400.2,0.00019999,2]
[360273361,1746688243029,-1400.2,0.00019999,2]
[360273362,1746688243039,-1400.2,0.00019999,2]
[360273363,1746688243049,-1400.2,0.00019999,2]
[360273364,1746688243060,-1400.2,0.00019999,2]
[360273365,1746688243069,-1400.2,0.00019999,2]
[360273366,1746688243079,-1400.2,0.00019999,2]
[360273367,1746688243090,-1400.2,0.00019999,2]
[360273368,1746688243100,-1400.2,0.00019999,2]
[360273369,1746688243110,-1400.2,0.00019999,2]
[360273370,1746688243120,-1400.2,0.00019999,2]
[360273371,1746688243130,-1400.2,0.00019999,2]
[360273372,1746688243140,-1400.2,0.00019999,2]
[360273373,1746688243151,-1400.2,0.00019999,2]
[360273374,1746688243162,-1400.2,0.00019999,2]
[360273375,1746688243172,-2603.03,0.00019999,2]
[360273376,1746688243182,-1400.2,0.00019999,2]
[360273377,1746688243193,-2603.03,0.00019999,2]
[360273378,1746688243203,-1400.43573831,0.00019999,2]
[360273379,1746688243213,-2603.03,0.00019999,2]
[360273380,1746688243223,-2603.03,0.00019999,2]
[360273381,1746688243233,-2603.03,0.00019999,2]
[360273382,1746688243243,-2603.03,0.00019999,2]
[360273383,1746688243254,-2603.03,0.00019999,2]
[360273384,1746688243264,-2603.03,0.00019999,2]
[360273385,1746688243274,-2603.03,0.00019999,2]
[360273386,1746688243284,-2603.03,0.00019999,2]
[360273387,1746688243294,-2603.03,0.00019999,2]
[360273388,1746688243304,-2603.03,0.00019999,2]
[360273389,1746688243313,-2603.03,0.00019999,2]
[360273390,1746688243323,-2603.03,0.00019999,2]
[360273391,1746688243332,-2603.03,0.00019999,2]
[360273392,1746688243341,-2603.03,0.00019999,2]
[360273393,1746688243352,-2603.03,0.00019999,2]
[360273395,1746688243362,-2603.03,0.00019999,2]
[360273397,1746688243372,-2603.03,0.00019999,2]
[360273398,1746688243381,-2603.21,0.00019999,2]
[360273399,1746688243390,-974.2,0.00019999,2]
[360273400,1746688243400,-974.2,0.00019999,2]
[360273401,1746688243410,-974.2,0.00019999,2]
[360273402,1746688243420,-974.2,0.00019999,2]
[360273403,1746688243431,-974.2,0.00019999,2]
[360273404,1746688243441,-974.2,0.00019999,2]
[360273405,1746688243450,-974.2,0.00019999,2]
[360273406,1746688243460,-974.2,0.00019999,2]
[360273407,1746688243470,-974.2,0.00019999,2]
[360273409,1746688243482,-974.2,0.00019999,2]
[360273411,1746688243493,-974.2,0.00019999,2]
[360273412,1746688243504,-974.2,0.00019999,2]
[360273413,1746688243518,-974.2,0.00019999,2]
[360273414,1746688243528,-974.2,0.00019999,2]
[360273415,1746688243538,-974.2,0.00019999,2]
[360273416,1746688243548,-974.2,0.00019999,2]
[360273417,1746688243558,-974.2,0.00019999,2]
[360273418,1746688243568,-974.2,0.00019999,2]
[360273419,1746688243578,-974.2,0.00019999,2]
[360273420,1746688243588,-974.26,0.00019999,2]
[360273421,1746688243597,-450.0,0.00019999,2]
[360273422,1746688243607,-450.0,0.00019999,2]
[360273423,1746688243617,-450.0,0.00019999,2]
[360273424,1746688243627,-450.0,0.00019999,2]
[360273425,1746688243637,-450.0,0.00019999,2]
[360273426,1746688243647,-450.0,0.00019999,2]
[360273427,1746688243657,-450.0,0.00019999,2]
[360273428,1746688243667,-450.0,0.00019999,2]
[360273429,1746688243677,-450.0,0.00019999,2]
[360273430,1746688243687,-450.0,0.00019999,2]
[360273431,1746688243697,-450.0,0.00019999,2]
[360273432,1746688243706,-450.0,0.00019999,2]
[360273433,1746688243716,-450.0,0.00019999,2]
[360273434,1746688243727,-450.0,0.00019999,2]
[360273435,1746688243736,-450.0,0.00019999,2]
[360273436,1746688243746,-450.0,0.00019999,2]
[360273437,1746688243756,-450.0,0.00019999,2]
[360273438,1746688243766,-450.0,0.00019999,2]
[360273439,1746688243776,-450.0,0.00019999,2]
[360273440,1746688243786,-427.47,0.00019999,2]
[360273441,1746688243796,-997.81,0.00019999,2]
[360273442,1746688243807,-997.81,0.00019999,2]
[360273443,1746688243819,-997.81,0.00019999,2]
[360273444,1746688243830,-3525.34,0.00019999,2]
[360273445,1746688243840,-997.81,0.00019999,2]
[360273446,1746688243849,-3525.34,0.00019999,2]
[360273447,1746688243859,-997.81,0.00019999,2]
[360273448,1746688243869,-3525.34,0.00019999,2]
[360273449,1746688243879,-997.81,0.00019999,2]
[360273450,1746688243888,-3525.34,0.00019999,2]
[360273451,1746688243899,-997.81,0.00019999,2]
[360273452,1746688243908,-3525.34,0.00019999,2]
[360273453,1746688243918,-997.81,0.00019999,2]
[360273454,1746688243928,-3525.34,0.00019999,2]
[360273455,1746688243938,-997.81,0.00019999,2]
[360273456,1746688243949,-3525.34,0.00019999,2]
[360273457,1746688243962,-997.81,0.00019999,2]
[360273458,1746688243971,-3525.34,0.00019999,2]
[360273459,1746688243981,-997.81,0.00019999,2]
[360273460,1746688243991,-3525.34,0.00019999,2]
[360273461,1746688244002,-3525.34,0.00019999,2]
[360273462,1746688244012,-997.81,0.00019999,2]
[360273463,1746688244022,-997.81,0.00019999,2]
[360273464,1746688244033,-3525.34,0.00019999,2]
[360273465,1746688244044,-997.81,0.00019999,2]
[360273466,1746688244054,-3525.34,0.00019999,2]
[360273467,1746688244063,-997.81,0.00019999,2]
[360273468,1746688244073,-3525.34,0.00019999,2]
[360273469,1746688244083,-997.81,0.00019999,2]
[360273470,1746688244093,-3525.34,0.00019999,2]
[360273471,1746688244102,-997.81,0.00019999,2]
[360273472,1746688244112,-3525.34,0.00019999,2]
[360273473,1746688244122,-3525.34,0.00019999,2]
[360273474,1746688244132,-997.81,0.00019999,2]
[360273475,1746688244142,-3525.34,0.00019999,2]
[360273476,1746688244152,-997.81,0.00019999,2]
[360273477,1746688244162,-3525.34,0.00019999,2]
[360273478,1746688244172,-997.87,0.00019999,2]
[360273479,1746688244182,-3525.34,0.00019999,2]
[360273480,1746688244192,-3525.36634259,0.00019999,2]
[360273481,1746688244202,-216.71,0.00019999,2]
[360273482,1746688244212,-877.62,0.00019999,2]
[360273483,1746688244221,-877.62,0.00019999,2]
[360273484,1746688244231,-877.62,0.00019999,2]
[360273485,1746688244241,-877.62,0.00019999,2]
[360273486,1746688244251,-877.62,0.00019999,2]
[360273487,1746688244262,-877.62,0.00019999,2]
[360273488,1746688244276,-877.62,0.00019999,2]
[360273489,1746688244287,-877.62,0.00019999,2]
[360273490,1746688244296,-877.62,0.00019999,2]
[360273491,1746688244307,-877.62,0.00019999,2]
[360273492,1746688244317,-877.62,0.00019999,2]
[360273493,1746688244327,-877.62,0.00019999,2]
[360273494,1746688244336,-877.62,0.00019999,2]
[360273495,1746688244347,-877.62,0.00019999,2]
[360273496,1746688244357,-877.62,0.00019999,2]
[360273497,1746688244368,-877.62,0.00019999,2]
[360273498,1746688244378,-877.62,0.00019999,2]
[360273499,1746688244388,-877.62,0.00019999,2]
[360273500,1746688244398,-877.62,0.00019999,2]
[360273501,1746688244409,-877.79,0.00019999,2]
[360273502,1746688244418,-2758.94,0.00019999,2]
[360273503,1746688244429,-2758.94,0.00019999,2]
[360273504,1746688244439,-2758.94,0.00019999,2]
[360273505,1746688244449,-2758.94,0.00019999,2]
[360273506,1746688244458,-2758.94,0.00019999,2]
[360273507,1746688244468,-2758.94,0.00019999,2]
[360273508,1746688244478,-2758.94,0.00019999,2]
[360273509,1746688244487,-2758.94,0.00019999,2]
[360273510,1746688244497,-2758.94,0.00019999,2]
[360273511,1746688244507,-2758.94,0.00019999,2]